[Event "41st OBSenEM 2025"]
[Site "Berlin"]
[Date "2025.02.05"]
[Round "2.3"]
[White "Schmidt, Juergen"]
[Black "Postler, Reinhard"]
[Result "0-1"]
[Annotator "TA"]
[ECO "B80"]
[WhiteElo "1908"]
[BlackElo "2189"]
[PlyCount "58"]
[EventDate "2025.02.04"]
[EventType "swiss"]
[EventCountry "GER"]
[SourceTitle "playchess.com"]
[Source "ChessBase"]
[SourceQuality "1"]
[TimeControl "40/5400+30:1800+30"]

{[%evp 20,58,67,51,72,48,43,29,30,29,56,58,72,40,105,110,96,100,112,94,77,0,0,0,0,-40,-55,-56,-60,-150,-146,-143,-104,-95,-104,-173,-161,-721,-704,-814,-781]} 1. e4 {[%emt 0:00:04]} c5 {[%emt 0:00:07]} 2. Nf3 {[%emt 0:00:09]} e6 {[%emt 0:00:07]} 3. d4 {[%emt 0:00:09]} cxd4 {[%emt 0:00:01]} 4. Nxd4 {[%emt 0:00:12]} Nc6 {[%emt 0:00:05]} 5. Nc3 {[%emt 0:00:54]} Qc7 {[%emt 0:00:07]} 6. Be3 {[%emt 0:00:29]} a6 {[%emt 0:00:27]} 7. Qd2 {[%emt 0:02:02]} Nf6 {[%emt 0:01:21]} 8. f3 {[%emt 0:00:26]} b5 {[%emt 0:00:19][%cal Bb7b5,Bb5b4][%mdl 32]} 9. g4 {[%emt 0:05:49]} d6 {[%emt 0:09:50]} 10. O-O-O {[%emt 0:05:06]} Be7 {[%emt 0:02:12]} 11. h4 {[%emt 0:05:23]} Nxd4 {[%emt 0:09:44] B80: Sicilian Scheveningen: 6 g3 and 6 Be3, including English Attack.} 12. Bxd4 {[%emt 0:04:41]} b4 {[%emt 0:02:44]} 13. Na4 {[%emt 0:06:17]} Rb8 $1 {[%emt 0:06:41] [#] White has an edge.} 14. b3 {[%emt 0:03:26]} e5 {[%emt 0:01:06]} 15. Be3 {[%emt 0:10:27]} a5 {[%emt 0:10:41]} 16. h5 $146 {[%emt 0:11:39] and g5 would now be decisive} (16. Nb2 Be6 17. Bc4 Bc8 18. h5 Nd7 19. g5 Nc5 20. Qg2 Be6 21. g6 Bxc4 22. Nxc4 {1-0 Jelic,I (1953)-Husajina,N (1824) CRO-chT U20 16th 2007 (7)}) 16... Be6 {[%emt 0:01:29]} ({Black should try} 16... h6 $14) 17. g5 $16 {[%emt 0:01:22]} Nd7 {[%emt 0:00:23]} 18. Bh3 {[%emt 0:00:28]} Nc5 {[%emt 0:07:27]} 19. Nxc5 {[%emt 0:10:33]} (19. Bxc5 {simplifies} dxc5 20. Bxe6 fxe6 21. Nb2) 19... dxc5 {[%emt 0:02:05] [#]} 20. g6 {[%emt 0:03:14]} Bxh3 $1 $11 {[%emt 0:04:20]} 21. h6 {[%emt 0:08:38]} fxg6 $1 {[%emt 0:03:05]} 22. Rxh3 {[%emt 0:04:21]} (22. hxg7 $5 Rg8 23. Rxh3 $11) 22... gxh6 {[%emt 0:06:16] ...Rd8 is the strong threat.} 23. Bxh6 {[%emt 0:02:43]} Rd8 {[%emt 0:00:42] Wards off Qd3} 24. Qh2 {[%emt 0:05:15]} (24. Qe2 $15) 24... Rxd1+ $17 {[%emt 0:02:12]} 25. Kxd1 {[%emt 0:00:15]} Bf6 {[%emt 0:01:37] Inhibits Bg7.} 26. Kc1 {[%emt 0:02:37]} c4 {[%emt 0:04:31][%cal Oa5a4]} 27. bxc4 {[%emt 0:02:36]} (27. f4 $17) 27... Qxc4 $19 {[%emt 0:01:50] Black attacks} 28. Rg3 $2 {[%emt 0:02:32]} (28. Kb1) 28... Qxa2 {[%emt 0:03:13]} 29. Qh3 {[%emt 0:02:23]} Ke7 {[%emt 0:20:18] Weighted Error Value: White=0.62/Black=0.10 (very precise)   Mistake:       	White=4     	Black=1      Inaccurate:     	White=2     	Black=1      OK:         	White=5     	Black=5      Best:        	White=1     	Black=3      Strong:       	---       	Black=3} 0-1

[Event "41st OBSenEM 2025"]
[Site "Berlin"]
[Date "2025.02.05"]
[Round "2.4"]
[White "Syre, Christian"]
[Black "Maetzing, Hans-Dieter"]
[Result "1-0"]
[Annotator "TA"]
[ECO "A48"]
[WhiteElo "2150"]
[BlackElo "1899"]
[PlyCount "47"]
[EventDate "2025.02.04"]
[EventType "swiss"]
[EventCountry "GER"]
[SourceTitle "playchess.com"]
[Source "ChessBase"]
[SourceQuality "1"]
[TimeControl "40/5400+30:1800+30"]

{[%evp 14,47,19,0,68,70,80,79,189,180,187,184,185,189,210,192,196,172,164,164,182,180,194,181,527,541,545,542,493,413,611,533,29964,29965,5808,5793]} 1. d4 {[%emt 0:00:59]} Nf6 {[%emt 0:00:09]} 2. Nf3 {[%emt 0:01:02]} d6 {[%emt 0:00:27]} 3. h3 {[%emt 0:01:01]} Nbd7 {[%emt 0:00:16]} 4. Bf4 {[%emt 0:04:57]} c6 {[%emt 0:01:54]} 5. e3 {[%emt 0:06:49]} g6 {[%emt 0:01:18]} 6. Be2 {[%emt 0:01:35]} Bg7 {[%emt 0:00:10]} 7. O-O {[%emt 0:00:04]} O-O {[%emt 0:00:06]} 8. c4 {[%emt 0:01:07]} Nh5 {[%emt 0:01:27] A48: 1 d4 Nf6 2 Nf3 g6: Torre, London and Colle Systems.} (8... e5 $11 9. Bg3 (9. dxe5 Ne4 $11) 9... Ne4) 9. Bh2 $14 {[%emt 0:01:49]} f5 {[%emt 0:02:38]} 10. Nc3 {[%emt 0:03:52]} h6 {[%emt 0:08:24]} (10... e5 $16 {keeps fighting.}) 11. Nh4 $18 {[%emt 0:01:20][%csl LRg6,LRh5]} Qe8 {[%emt 0:13:55] [#]} 12. Nxg6 $1 {[%emt 0:01:30][%mdl 512]} Qxg6 {[%emt 0:00:14]} 13. Bxh5 {[%emt 0:00:20]} Qh7 $146 {[%emt 0:02:14]} (13... Qf6 14. Ne2 e5 15. Rb1 c5 16. dxc5 Nxc5 17. Nc3 Rd8 18. Nd5 Qg5 19. Bg3 Ne4 {1-0 Shendrik,Z (2058)-Khusnutdinova,A RUS-ch (Women) 1st League 61st 2011 (3)}) 14. Qc2 {[%emt 0:05:47]} e5 {[%emt 0:05:25]} 15. dxe5 {[%emt 0:15:47]} dxe5 {[%emt 0:01:35]} 16. Rad1 {[%emt 0:01:09][%cal Ba1d1,Bd1d6,Bd6g6][%mdl 32]} Nf6 {[%emt 0:06:40]} 17. Be2 {[%emt 0:01:31]} Re8 {[%emt 0:02:32]} 18. Rd6 {[%emt 0:06:12]} Nd7 $2 {[%emt 0:05:00]} (18... Qg6 {is more resistant.} 19. Rfd1 e4) 19. Bh5 {[%emt 0:01:53]} Bf8 {[%emt 0:09:32]} 20. Rg6+ {[%emt 0:09:35]} Kh8 {[%emt 0:03:38]} 21. Qxf5 {[%emt 0:02:51]} Re7 {[%emt 0:01:24]} (21... Bg7 $142 22. Qf7 Rf8) 22. Rd1 {[%emt 0:15:07][%cal Od1d7] [#] aiming for Rxd7!.} Rf7 {[%emt 0:01:03]} 23. Bxe5+ {[%emt 0:00:55]} Nxe5 {[%emt 0:00:28]} 24. Qxe5+ {[%emt 0:00:01] Black did not feel at home in the position after the opening.   Weighted Error Value: White=0.15 (very precise) /Black=1.04  Mistake:       	---       	Black=3      Inaccurate:     	---       	Black=1      OK:         	White=7     	Black=4      Best:        	White=2     	---} 1-0

[Event "41st OBSenEM 2025"]
[Site "Berlin"]
[Date "2025.02.06"]
[Round "3.1"]
[White "Meister, Jakob"]
[Black "Federau, Juergen"]
[Result "1/2-1/2"]
[Annotator "TA"]
[ECO "A25"]
[WhiteElo "2418"]
[BlackElo "2124"]
[PlyCount "90"]
[EventDate "2025.02.04"]
[EventType "swiss"]
[EventCountry "GER"]
[SourceTitle "playchess.com"]
[Source "ChessBase"]
[SourceQuality "1"]
[TimeControl "40/5400+30:1800+30"]

{[%evp 14,90,7,4,23,14,29,7,43,25,41,31,43,33,47,44,70,74,103,88,93,43,40,45,47,35,39,30,32,39,39,57,44,40,59,36,72,64,91,42,43,47,41,59,130,126,134,137,137,154,280,280,284,280,284,284,393,385,405,177,254,137,276,228,214,205,267,60,41,46,53,35,40,6,8,5,12,0,0]} 1. c4 {[%emt 0:00:02]} e5 {[%emt 0:00:15]} 2. Nc3 {[%emt 0:00:10]} Nc6 {[%emt 0:00:04]} 3. g3 {[%emt 0:00:14]} f5 {[%emt 0:00:30]} 4. Bg2 {[%emt 0:00:13]} Nf6 {[%emt 0:00:15]} 5. d3 {[%emt 0:02:53]} Bb4 {[%emt 0:01:08]} 6. Bd2 {[%emt 0:05:41]} O-O {[%emt 0:00:26]} 7. a3 {[%emt 0:02:02]} Bxc3 {[%emt 0:00:26]} 8. Bxc3 {[%emt 0:00:02]} d6 {[%emt 0:08:17]} 9. b4 {[%emt 0:01:32][%cal Bb2b4,Bb4b5][%mdl 32]} Qe8 {[%emt 0:03:10]} 10. b5 {[%emt 0:00:58]} Ne7 {[%emt 0:01:02]} 11. Nf3 {[%emt 0:12:03]} a6 {[%emt 0:17:49]} 12. a4 {[%emt 0:06:01]} Kh8 {[%emt 0:08:46]} 13. Nd2 {[%emt 0:07:22]} Ng6 {[%emt 0:07:43]} 14. O-O {[%emt 0:04:41]} Ng4 {[%emt 0:06:44]} 15. e3 {[%emt 0:07:04]} h5 {[%emt 0:04:54][%cal Bh7h5,Bh5h4][%mdl 32]} 16. Qe2 {[%emt 0:09:54]} h4 {[%emt 0:02:05]} 17. h3 {[%emt 0:38:08]} (17. Rfb1 $16) 17... Nf6 $14 {[%emt 0:00:24]} 18. Kh2 {[%emt 0:00:00]} axb5 {[%emt 0:10:02]} 19. axb5 {[%emt 0:00:00]} Rxa1 {[%emt 0:00:08]} 20. Rxa1 {[%emt 0:00:00]} hxg3+ {[%emt 0:00:28]} 21. fxg3 {[%emt 0:00:00]} c6 {[%emt 0:01:17]} 22. bxc6 {[%emt 0:00:00]} bxc6 {[%emt 0:00:09]} 23. Nf3 {[%emt 0:00:00]} Bd7 {[%emt 0:09:02]} 24. Ng5 {[%emt 0:00:00]} Qd8 {[%emt 0:11:39]} 25. Ra7 {[%emt 0:00:00]} Kg8 {[%emt 0:01:40]} 26. d4 {[%emt 0:00:00]} (26. Qa2 $16) 26... e4 {[%emt 0:03:34]} 27. d5 {[%emt 0:00:00]} cxd5 {[%emt 0:00:58]} 28. cxd5 {[%emt 0:00:00][%cal Bc4d5,Bd5e6,Be6e7][%mdl 32]} Qe8 {[%emt 0:00:57]} (28... Qc8 $14 29. Bxf6 Rxf6) 29. Qa2 {[%emt 0:00:00]} Ne5 {[%emt 0:00:16]} 30. Ne6 $1 {[%emt 0:00:00]} Bxe6 {[%emt 0:00:29]} 31. dxe6 {[%emt 0:00:00]} Kh8 {[%emt 0:00:18]} (31... Kh7 $16) 32. Bxe5 $18 {[%emt 0:00:00]} dxe5 {[%emt 0:00:06]} 33. e7 {[%emt 0:00:00]} Rg8 {[%emt 0:00:05]} 34. Bf1 $1 {[%emt 0:00:00] Black must now prevent Bc4.} Qh5 {[%emt 0:00:32][%cal Of5f4]} 35. Be2 {[%emt 0:00:21]} Qh6 {[%emt 0:00:47]} 36. Qd2 {[%emt 0:00:31]} (36. Ra8 $142 {[%cal Oa2g8] White wants to mate with Qxg8+!} Rxa8 37. Qxa8+ Kh7 38. e8=Q (38. e8=R Nxe8 39. Qxe8 Qf6 $18) 38... Nxe8 39. Qxe8) 36... Qg6 {[%emt 0:01:24] [#]} (36... Kh7 {was necessary.} 37. Ra5 Qg6 38. Rxe5 Rb8) 37. Bb5 {[%emt 0:01:12]} (37. Bc4 $1 $18 {[%cal Rc4g8]} Re8 38. Bb5) 37... Nh5 {[%emt 0:00:36]} (37... Kh7 $16) 38. Qf2 {[%emt 0:00:35] Active counter play!} (38. e8=B Qxg3+ (38... Rxe8 $2 39. g4 $18) 39. Kh1 Qf3+ (39... Qxh3+ 40. Qh2 $11) 40. Kh2 Qg3+ 41. Kh1 g6 $11 (41... Qxh3+ 42. Qh2 $11)) 38... Nf6 {[%emt 0:00:09]} 39. Ra6 {[%emt 0:01:29]} Qf7 {[%emt 0:00:45] [#]} 40. Qxf5 $2 {[%emt 0:05:19]} ({Only move:} 40. g4 $1 $18 {[%cal Rg4g5] g5 would now be deadly.} fxg4 41. Rxf6 g3+ 42. Qxg3 (42. Kxg3 gxf6+ 43. Kh2 Qxe7 $11) 42... Qxf6 43. e8=Q (43. e8=R Rxe8 44. Bxe8 Kh7 $18) 43... Rxe8 44. Bxe8) 40... Qxe7 $14 {[%emt 0:00:19]} 41. Bf1 {[%emt 0:30:28]} Rf8 {[%emt 0:06:11] aiming for ...Nh7.} 42. Bg2 {[%emt 0:00:00][%cal Og3g4]} (42. Qg5 $5 Qc5 $8 43. Bg2 $14) 42... Qc5 {[%emt 0:01:28]} 43. Re6 {[%emt 0:00:00]} (43. Bxe4 Qxe3 44. Bg2 Qd4 $11) 43... Qxe3 {[%emt 0:01:41] The position is equal.} 44. Rxe5 {[%emt 0:00:00]} Rd8 {[%emt 0:08:46]} 45. Rc5 {[%emt 0:00:00]} Qd4 {[%emt 0:05:15] Black defended with fortune.   Weighted Error Value: White=0.27 (precise) /Black=0.30.  Missed win:     	White=1     	---        Mistake:       	White=4     	Black=4      Inaccurate:     	White=1     	Black=7      OK:         	White=5     	Black=9      Best:        	White=2     	Black=4      Strong:       	White=2     	---} 1/2-1/2

[Event "41st OBSenEM 2025"]
[Site "Berlin"]
[Date "2025.02.06"]
[Round "3.2"]
[White "Glatthor, Thomas"]
[Black "Heinig, Wolfram"]
[Result "0-1"]
[Annotator "TA"]
[ECO "D79"]
[WhiteElo "1990"]
[BlackElo "2196"]
[PlyCount "74"]
[EventDate "2025.02.04"]
[EventType "swiss"]
[EventCountry "GER"]
[SourceTitle "playchess.com"]
[Source "ChessBase"]
[SourceQuality "1"]
[TimeControl "40/5400+30:1800+30"]

{[%evp 19,74,-12,1,-45,-15,-10,-10,-25,-24,-114,-49,-55,-34,-189,-192,-197,-160,-221,-189,-193,-199,-184,-170,-165,-131,-132,-134,-288,-260,-260,-259,-246,-181,-175,-182,-256,-179,-362,-323,-367,-364,-352,-315,-412,-388,-506,-468,-379,-433,-506,-462,-571,-568,-549,-555,-524,-450]} 1. d4 {[%emt 0:00:03]} Nf6 {[%emt 0:00:18]} 2. Nf3 {[%emt 0:00:12]} g6 {[%emt 0:01:05]} 3. g3 {[%emt 0:00:19]} Bg7 {[%emt 0:01:06]} 4. Bg2 {[%emt 0:00:04]} O-O {[%emt 0:00:21]} 5. O-O {[%emt 0:00:07]} d5 {[%emt 0:02:02]} 6. c4 {[%emt 0:01:00]} c6 {[%emt 0:00:34]} 7. cxd5 {[%emt 0:00:17]} cxd5 {[%emt 0:00:07]} 8. Nc3 {[%emt 0:00:10]} Ne4 {[%emt 0:01:24]} 9. Qb3 {[%emt 0:05:21]} Nxc3 {[%emt 0:00:28]} 10. Qxc3 {[%emt 0:00:30]} Nc6 {[%emt 0:00:51]} 11. Bf4 {[%emt 0:00:35]} (11. Ne5 $11 {should be considered.}) 11... Bf5 {[%emt 0:02:46]} 12. Ne5 {[%emt 0:05:29]} Rc8 {[%emt 0:01:08][%cal Ba8c8,Bc8c6,Bc6e6,Be6e2,Be2b2][%mdl 32]} 13. Nxc6 {[%emt 0:02:04] The position is equal.} Rxc6 {[%emt 0:01:01]} 14. Qe3 {[%emt 0:00:04] [#]} (14. Qb3 $11 {remains equal.}) 14... Qd7 {[%emt 0:03:32]} (14... e6 $1 $17 {White must now prevent ...Qb6.} 15. Rac1 Qb6 16. Rxc6 bxc6) 15. Rac1 {[%emt 0:01:49]} Rfc8 {[%emt 0:01:50]} 16. Bh6 $2 {[%emt 0:07:23] [#]} ({White should play} 16. Rxc6 $15 Rxc6 17. Qa3) 16... Re6 $1 $19 {[%emt 0:08:22]} 17. Rxc8+ {[%emt 0:03:46]} Qxc8 {[%emt 0:00:02]} 18. Rc1 {[%emt 0:00:26]} (18. Qc1 $17 {keeps fighting.} Qxc1 (18... Rxe2 $2 19. Qxc8+ Bxc8 20. Be3 $19) 19. Bxc1) 18... Qd7 {[%emt 0:09:29]} ({Not} 18... Rxe3 19. Rxc8+ Bxc8 20. Bxe3 $11) 19. Qf4 {[%emt 0:03:37] White wants to mate with Qb8+.} Bxh6 {[%emt 0:01:44]} ({Stronger than} 19... Rxe2 20. Qb8+) 20. Qxh6 {[%emt 0:06:23]} Rxe2 {[%emt 0:00:37]} 21. Qf4 {[%emt 0:00:55]} Rxb2 {[%emt 0:02:56]} 22. Qb8+ {[%emt 0:01:52]} Kg7 {[%emt 0:00:06]} 23. Qxa7 $2 {[%emt 0:06:31] This move loses the game for White.} (23. Qe5+ $17 f6 24. Qxd5) 23... Qe6 {[%emt 0:10:59] Strongly threatening ...Qe2. White is weak on the light squares} 24. Qa3 {[%emt 0:05:37]} Qe2 $40 {[%emt 0:01:59][%csl LRa2,LRf2][%mdl 128] Black attacks with force.} 25. Qe3 {[%emt 0:00:39]} Qxe3 {[%emt 0:11:26]} ({Much less strong is} 25... Rxa2 26. Bxd5 Qxe3 27. fxe3) 26. fxe3 {[%emt 0:00:05][%mdl 4096] Endgame. KRB-KRB} e6 {[%emt 0:00:20]} 27. Rc7 {[%emt 0:03:11]} (27. a4 $142) 27... Bd3 {[%emt 0:00:46][%cal Ob7b5]} 28. Rc3 $2 {[%emt 0:02:17]} (28. a4) 28... Bc4 {[%emt 0:01:49]} 29. a3 {[%emt 0:00:04]} f5 {[%emt 0:01:27]} 30. Bf3 {[%emt 0:02:28]} Kf6 {[%emt 0:01:22]} 31. h3 {[%emt 0:01:41]} b5 {[%emt 0:01:11]} 32. Bg2 {[%emt 0:05:06]} e5 {[%emt 0:02:14]} 33. dxe5+ {[%emt 0:01:03]} Kxe5 {[%emt 0:00:03]} 34. h4 {[%emt 0:02:35] Black is clearly winning.} h6 {[%emt 0:00:47]} 35. Bf3 {[%emt 0:03:23]} d4 {[%emt 0:01:46]} 36. exd4+ {[%emt 0:00:18]} Kxd4 {[%emt 0:00:01]} 37. Rc1 {[%emt 0:00:17]} Rb3 {[%emt 0:00:39][%csl LRa3,LRf3] Weighted Error Value: White=0.54/Black=0.17 (very precise) .  Mistake:       	White=6     	Black=1      Inaccurate:     	White=2     	Black=2      OK:         	White=9     	Black=10     Best:        	White=1     	Black=3      Strong:       	---       	Black=1} 0-1

[Event "41st OBSenEM 2025"]
[Site "Berlin"]
[Date "2025.02.06"]
[Round "3.3"]
[White "Postler, Reinhard"]
[Black "Bornschein, Burkhard"]
[Result "1-0"]
[Annotator "TA"]
[ECO "B33"]
[WhiteElo "2189"]
[BlackElo "1949"]
[PlyCount "61"]
[EventDate "2025.02.04"]
[EventType "swiss"]
[EventCountry "GER"]
[SourceTitle "playchess.com"]
[Source "ChessBase"]
[SourceQuality "1"]
[TimeControl "40/5400+30:1800+30"]

{[%evp 20,60,24,0,55,42,60,70,136,121,132,127,129,139,127,108,118,94,105,124,154,140,393,376,567,543,541,525,437,435,1134,1100,1169,1155,2108,920,29989,29990,29991,29991,29994,29995,29999]} 1. e4 {[%emt 0:00:04]} c5 {[%emt 0:00:09]} 2. Nf3 {[%emt 0:00:05][%cal Bg1f3,Bf3d4,Bd4b5,Bb5a3,Ba3c2][%mdl 32]} Nc6 {[%emt 0:00:05]} 3. d4 {[%emt 0:00:07]} cxd4 {[%emt 0:00:12]} 4. Nxd4 {[%emt 0:00:01]} Nf6 {[%emt 0:00:10]} 5. Nc3 {[%emt 0:00:09]} e5 {[%emt 0:00:19]} 6. Ndb5 {[%emt 0:00:07]} d6 {[%emt 0:00:09]} 7. Bg5 {[%emt 0:00:18]} a6 {[%emt 0:00:17]} 8. Na3 {[%emt 0:00:08]} b5 {[%emt 0:00:21][%cal Bb7b5,Bb5b4][%mdl 32]} 9. Nd5 {[%emt 0:00:09]} Be7 {[%emt 0:00:06]} 10. Bxf6 {[%emt 0:00:37]} Bxf6 {[%emt 0:00:07]} 11. c4 {[%emt 0:00:30]} Qa5+ {[%emt 0:36:16]} (11... b4 $11 12. Nc2 O-O) 12. Qd2 $14 {[%emt 0:05:34]} b4 {[%emt 0:03:31]} 13. Nc2 {[%emt 0:01:52] Excellent horsemanship.} Rb8 {[%emt 0:00:28]} (13... Bd8 $14) 14. Nxf6+ $16 {[%emt 0:05:31]} gxf6 {[%emt 0:00:07] [#]} 15. b3 $1 {[%emt 0:01:42]} (15. Qxd6 $2 {loses.} b3+ 16. Qd2 bxc2 $19) 15... Qc5 {[%emt 0:01:34]} 16. Rd1 {[%emt 0:01:28]} Ke7 {[%emt 0:02:57]} 17. Ne3 {[%emt 0:00:39]} Be6 {[%emt 0:00:55]} 18. Be2 {[%emt 0:02:08]} h5 {[%emt 0:02:42]} 19. O-O {[%emt 0:01:49]} Nd4 {[%emt 0:05:37] [#]} 20. Kh1 $1 {[%emt 0:04:00]} f5 $2 {[%emt 0:08:10][%mdl 8192] Black cannot hold the game after this.} (20... Rbg8 $16 {keeps fighting.}) 21. exf5 $18 {[%emt 0:07:16]} Nxf5 {[%emt 0:01:39]} (21... Bxf5 {was called for.} 22. Nxf5+ Nxf5 23. Qg5+ Ke6 24. Bxh5 f6) 22. Nxf5+ {[%emt 0:00:48]} Bxf5 {[%emt 0:00:51]} 23. Qg5+ {[%emt 0:04:09]} Ke6 {[%emt 0:00:14]} 24. Bf3 {[%emt 0:00:13] Inhibits Be4. Hoping for Bd5+.} ({Resist} 24. Bxh5 f6 $18) 24... Bg6 {[%emt 0:02:00]} (24... Bg4 $142 25. Bxg4+ hxg4 26. Qxg4+ Ke7 27. Qg5+ Ke6) 25. Rd5 {[%emt 0:00:49][%cal Bd1d5,Bd5e5,Be5e7][%mdl 32]} Qc7 {[%emt 0:03:06] [#]} 26. c5 $1 {[%emt 0:04:03][%mdl 512]} Rbd8 {[%emt 0:05:21]} (26... dxc5 27. Re1) 27. Re1 {[%emt 0:02:09]} (27. cxd6 $142 Qxd6 28. Rxd6+ Rxd6 29. Re1) 27... Rhe8 {[%emt 0:03:09]} 28. cxd6 {[%emt 0:00:32] White mates.} Qc3 {[%emt 0:02:04]} 29. Rdxe5+ {[%emt 0:01:46]} Kd7 {[%emt 0:01:27]} 30. Re7+ {[%emt 0:00:42]} (30. Bxh5 $2 {gets mated.} Qxe1+ 31. Rxe1 Rxe1#) 30... Kxd6 {[%emt 0:05:11]} 31. Qd5# {[%emt 0:00:11] Weighted Error Value: White=0.06 (flawless) /Black=0.68.  Loses game:     	---       	Black=1      Mistake:       	---       	Black=3      OK:         	White=5     	Black=1      Best:        	White=4     	Black=2      Strong:       	White=1     	---} 1-0

[Event "41st OBSenEM 2025"]
[Site "Berlin"]
[Date "2025.02.06"]
[Round "3.4"]
[White "Matitschka, Heinz"]
[Black "Syre, Christian"]
[Result "1-0"]
[Annotator "TA"]
[ECO "A56"]
[WhiteElo "1943"]
[BlackElo "2150"]
[PlyCount "69"]
[EventDate "2025.02.04"]
[EventType "swiss"]
[EventCountry "GER"]
[SourceTitle "playchess.com"]
[Source "ChessBase"]
[SourceQuality "1"]
[TimeControl "40/5400+30:1800+30"]

{[%evp 10,69,90,80,96,75,82,68,76,67,95,82,75,83,85,77,81,78,88,61,100,97,99,91,114,-4,41,26,115,77,147,95,110,91,186,163,245,221,316,312,640,739,741,641,1329,1284,1645,1597,1582,1113,1749,1673,1629,1621,1812,1826,1896,1888,1754,1759,1508,1202]} 1. d4 {[%emt 0:00:08]} Nf6 {[%emt 0:00:07]} 2. c4 {[%emt 0:00:09]} c5 {[%emt 0:01:29]} 3. d5 {[%emt 0:00:17]} e5 {[%emt 0:00:08]} 4. Nc3 {[%emt 0:00:45]} d6 {[%emt 0:00:03]} 5. e4 {[%emt 0:00:56]} Be7 {[%emt 0:04:00]} 6. Nge2 {[%emt 0:01:20][%cal Bg1e2,Be2g3,Bg3f1,Bf1e3][%mdl 32]} h5 {[%emt 0:06:51][%cal Bh7h5,Bh5h4][%mdl 32] A56: Czech Benoni.} 7. Ng3 {[%emt 0:06:10]} g6 {[%emt 0:02:22]} 8. Be2 {[%emt 0:02:03]} Nbd7 {[%emt 0:16:19] White is slightly better.} 9. Bd2 {[%emt 0:04:55]} Nh7 $146 {[%emt 0:11:12]} (9... a6 10. a3 Nh7 11. Nf1 Bg5 12. Ne3 b6 13. g3 h4 14. Ng2 h3 15. Ne3 O-O {0-1 Joly,L (2160)-Syska,A (2243) FRA-chT2 East 0607 2006 (7.4)}) 10. Qa4 {[%emt 0:10:30]} h4 {[%emt 0:07:25]} 11. Nf1 {[%emt 0:01:56] White is much more active.} Bg5 {[%emt 0:00:23]} 12. Ne3 {[%emt 0:08:35]} O-O {[%emt 0:00:17] Black is weak on the light squares} 13. O-O-O {[%emt 0:05:41]} a6 {[%emt 0:03:53]} 14. g3 {[%emt 0:01:26]} b5 {[%emt 0:15:04]} 15. cxb5 {[%emt 0:03:02]} Nb6 {[%emt 0:00:35]} 16. Qb3 {[%emt 0:07:19]} axb5 {[%emt 0:04:11]} 17. Nxb5 {[%emt 0:06:16]} (17. Bxb5 $16 Ba6 18. Rhf1) 17... Nf6 {[%emt 0:04:34]} 18. f3 {[%emt 0:02:05][%cal Bf2f3,Bf3f4,Bf4f5][%mdl 32]} Ne8 {[%emt 0:04:20]} (18... Nh5 $11) 19. Rhg1 {[%emt 0:07:36]} Kh8 {[%emt 0:02:19]} (19... Ba6 $142) 20. Rdf1 {[%emt 0:05:11]} (20. gxh4 $142 Bxh4 21. Kb1) 20... Bh3 $16 {[%emt 0:11:33]} 21. Rf2 {[%emt 0:04:05]} Bd7 {[%emt 0:01:09]} (21... c4 $16 22. Nxc4 (22. Bxc4 $2 {is the wrong capture.} Bxe3 23. Bxe3 Nxc4 $19) 22... Nxc4 23. Bxc4 Qb6 24. Bxg5 Qxf2) 22. f4 $18 {[%emt 0:01:36]} Bf6 {[%emt 0:00:04]} (22... Be7 {might work better.} 23. Kb1 Nf6) 23. f5 {[%emt 0:02:36]} Bxb5 {[%emt 0:00:46]} (23... c4 $142 24. Bxc4 gxf5) 24. Bxb5 {[%emt 0:01:24]} Nc7 $2 {[%emt 0:00:29] [#]} (24... c4 25. Bxc4 (25. Nxc4 Nxc4 26. Qxc4 Bg5 $18) 25... Bg7) 25. Bc6 {[%emt 0:02:27][%csl LRa8,LRb6] White is clearly winning.} Rb8 {[%emt 0:00:07]} 26. Qd1 {[%emt 0:03:12]} Bg5 {[%emt 0:03:00]} 27. gxh4 {[%emt 0:02:34]} Bf4 {[%emt 0:00:07]} 28. fxg6 {[%emt 0:01:30]} fxg6 {[%emt 0:00:02]} 29. Rxg6 {[%emt 0:03:43]} Qxh4 {[%emt 0:00:01] [#]} 30. Rxf4 $1 {[%emt 0:02:22]} Rxf4 {[%emt 0:01:49]} 31. Nf5 {[%emt 0:00:07]} Rxf5 {[%emt 0:00:12]} 32. exf5 {[%emt 0:00:45] and Rh6+ should not be overlooked} Qc4+ {[%emt 0:00:43]} 33. Kb1 {[%emt 0:01:19][%cal Rd1h5]} Qe4+ {[%emt 0:00:43]} 34. Ka1 {[%emt 0:00:26]} Qxf5 {[%emt 0:00:03]} 35. Qg1 {[%emt 0:00:24] Weighted Error Value: White=0.16 (very precise) /Black=0.89  Mistake:       	White=2     	Black=6      Inaccurate:     	White=2     	Black=3      OK:         	White=5     	Black=5      Best:        	---       	Black=1} 1-0

[Event "41st OBSenEM 2025"]
[Site "Berlin"]
[Date "2025.02.07"]
[Round "4.1"]
[White "Heinig, Wolfram"]
[Black "Ahlberg, Matthias"]
[Result "1/2-1/2"]
[Annotator "NA RC"]
[ECO "D13"]
[WhiteElo "2196"]
[BlackElo "2067"]
[PlyCount "25"]
[EventDate "2025.02.04"]
[EventType "swiss"]
[EventCountry "GER"]
[SourceTitle "playchess.com"]
[Source "ChessBase"]
[SourceQuality "1"]
[TimeControl "40/5400+30:1800+30"]

1. d4 {[%emt 0:00:11]} c6 {[%emt 0:00:02]} 2. c4 {[%emt 0:00:33]} d5 {[%emt 0:00:03]} 3. Nf3 {[%emt 0:00:20]} Nf6 {[%emt 0:00:09]} 4. cxd5 {[%emt 0:00:44]} cxd5 {[%emt 0:00:03]} 5. Nc3 {[%emt 0:00:10]} Nc6 {[%emt 0:00:18]} 6. Bf4 {[%emt 0:00:15]} Bg4 {[%emt 0:00:51]} 7. Ne5 {[%emt 0:01:42]} Bd7 {[%emt 0:01:56]} 8. e3 {[%emt 0:00:48]} a6 {[%emt 0:01:00]} 9. Bd3 {[%emt 0:04:22]} e6 {[%emt 0:01:08]} 10. O-O {[%emt 0:08:17]} Be7 {[%emt 0:00:45]} 11. Rc1 {[%emt 0:00:43]} Rc8 {[%emt 0:03:09]} 12. Nxd7 {[%emt 0:08:30]} Nxd7 {[%emt 0:03:27]} 13. Qe2 {[%emt 1:10:25]} 1/2-1/2